[Event "African Online-ch Women 2021"]
[Site "Online"]
[Date "2021.02.01"]
[Round "1.1"]
[White "Sitoe, Cheila Andre"]
[Black "Wafa, Shahenda"]
[Result "0-1"]
[WhiteElo "1588"]
[BlackElo "2143"]
[PlyCount "86"]
[EventDate "2021.02.01"]
[EventType "swiss"]
[EventCountry "NET"]
[TimeControl "1500+10"]
[WhiteClock "0:04:20"]
[BlackClock "0:01:13"]

{Clock started by Arbiter.} 1. e4 {[%emt 0:00:23]} c5 {[%emt 0:00:05]} 2. Nf3 {[%emt 0:01:51]} Nc6 {[%emt 0:00:05]} 3. Be2 {[%emt 0:00:26]} g6 {[%emt 0:00:08]} 4. Nc3 {[%emt 0:01:32]} Bg7 {[%emt 0:00:05]} 5. d3 {[%emt 0:00:19]} e6 {[%emt 0:00:19]} 6. Be3 {[%emt 0:00:09]} Nd4 {[%emt 0:01:12]} 7. O-O {[%emt 0:01:29]} Ne7 {[%emt 0:03:42]} 8. h3 {[%emt 0:00:21]} O-O {[%emt 0:00:12]} 9. Nh2 {[%emt 0:01:09]} d5 {[%emt 0:00:49]} 10. Bg5 {[%emt 0:02:24]} Nxe2+ {[%emt 0:04:18]} 11. Qxe2 {[%emt 0:00:20]} d4 {[%emt 0:00:05]} 12. Nd1 {[%emt 0:00:37]} h6 {[%emt 0:00:50]} 13. Bh4 {[%emt 0:00:25]} g5 {[%emt 0:00:32]} 14. Bg3 {[%emt 0:00:07]} Ng6 {[%emt 0:00:25]} 15. f3 {[%emt 0:03:28]} f5 {[%emt 0:00:40]} 16. exf5 {[%emt 0:01:48]} exf5 {[%emt 0:00:06]} 17. Re1 {[%emt 0:00:49]} Bd7 {[%emt 0:01:45]} 18. Nf1 {[%emt 0:00:24]} h5 {[%emt 0:01:25]} 19. Nd2 {[%emt 0:00:39]} g4 {[%emt 0:02:05]} 20. fxg4 {[%emt 0:00:29]} fxg4 {[%emt 0:00:31]} 21. hxg4 {[%emt 0:00:05]} Bxg4 {[%emt 0:00:36]} 22. Nf3 {[%emt 0:00:06]} h4 {[%emt 0:00:35]} 23. Bh2 {[%emt 0:01:03]} h3 {[%emt 0:00:20]} 24. Qe4 {[%emt 0:00:06]} Bxf3 {[%emt 0:03:30]} 25. gxf3 {[%emt 0:00:30]} Qg5+ {[%emt 0:00:53]} 26. Qg4 {[%emt 0:00:07]} Nh4 {[%emt 0:02:16]} 27. Qxg5 {[%emt 0:00:56]} Nxf3+ {[%emt 0:00:03]} 28. Kh1 {[%emt 0:00:10]} Nxg5 {[%emt 0:00:02]} 29. Bd6 {[%emt 0:00:47]} Rf5 {[%emt 0:00:13]} 30. b3 {[%emt 0:01:24]} Rd8 {[%emt 0:00:23]} 31. Be7 {[%emt 0:00:36]} Re8 {[%emt 0:00:06]} 32. Nb2 {[%emt 0:00:13]} Nf3 {[%emt 0:00:07]} 33. Re4 {[%emt 0:00:23]} Kf7 {[%emt 0:00:53]} 34. Bd6 {[%emt 0:00:24]} Re6 {[%emt 0:00:25]} 35. Bf4 {[%emt 0:00:44]} Rxe4 {[%emt 0:00:08]} 36. dxe4 {[%emt 0:00:03]} Rxf4 {[%emt 0:00:02]} 37. Nd3 {[%emt 0:00:04]} Rxe4 {[%emt 0:00:11]} 38. Rf1 {[%emt 0:00:08]} Re3 {[%emt 0:00:09]} 39. Nxc5 {[%emt 0:00:19]} b6 {[%emt 0:00:26]} 40. Nd3 {[%emt 0:00:07]} Bf6 {[%emt 0:00:09]} 41. Nf4 {[%emt 0:00:07]} Re1 {[%emt 0:00:08]} 42. Rxe1 {[%emt 0:00:05]} Nxe1 {[%emt 0:00:02]} 43. Nxh3 {[%emt 0:00:14]} Nxc2 {[%emt 0:00:01] #R} 0-1

[Event "African Online-ch Women 2021"]
[Site "Online"]
[Date "2021.02.01"]
[Round "1.2"]
[White "Mezioud, Amina"]
[Black "Ben Said, Safa"]
[Result "1-0"]
[WhiteElo "2071"]
[BlackElo "1577"]
[PlyCount "79"]
[EventDate "2021.02.01"]
[EventType "swiss"]
[EventCountry "NET"]
[TimeControl "1500+10"]
[WhiteClock "0:03:00"]
[BlackClock "0:08:40"]

1. e4 {[%emt 0:00:00]} e5 {[%emt 0:00:10]} 2. Nf3 {[%emt 0:00:03]} Nc6 {[%emt 0:00:04]} 3. Bb5 {[%emt 0:00:02]} d6 {[%emt 0:00:07]} 4. O-O {[%emt 0:00:04]} Bd7 {[%emt 0:00:12]} 5. d4 {[%emt 0:00:08]} Nxd4 {[%emt 0:00:51]} 6. Bxd7+ {[%emt 0:00:05]} Qxd7 {[%emt 0:00:04]} 7. Nxd4 {[%emt 0:00:02]} exd4 {[%emt 0:00:09]} 8. Qxd4 {[%emt 0:00:02]} Nf6 {[%emt 0:00:07]} 9. Nc3 {[%emt 0:00:05]} Be7 {[%emt 0:00:24]} 10. Bg5 {[%emt 0:01:17]} O-O {[%emt 0:02:05]} 11. Rad1 {[%emt 0:00:15]} Qg4 {[%emt 0:01:00]} 12. Be3 {[%emt 0:00:59]} Nd7 {[%emt 0:02:15]} 13. h3 {[%emt 0:00:10]} Qg6 {[%emt 0:00:11]} 14. Nd5 {[%emt 0:00:28]} Bf6 {[%emt 0:00:21]} 15. Qa4 {[%emt 0:03:47]} Nb6 {[%emt 0:01:35]} 16. Bxb6 {[%emt 0:00:45]} axb6 {[%emt 0:00:27]} 17. Qc4 {[%emt 0:00:06]} Bd8 {[%emt 0:02:43]} 18. Rd3 {[%emt 0:00:31]} c6 {[%emt 0:00:06]} 19. Ne3 {[%emt 0:04:04]} Bc7 {[%emt 0:00:59]} 20. Nf5 {[%emt 0:00:19]} Qf6 {[%emt 0:00:46]} 21. Rf3 {[%emt 0:06:41]} Qxb2 {[%emt 0:02:49]} 22. c3 {[%emt 0:00:03]} Qxa2 {[%emt 0:00:08]} 23. Qd4 {[%emt 0:00:04]} f6 {[%emt 0:00:11]} 24. c4 {[%emt 0:01:59]} d5 {[%emt 0:00:28]} 25. exd5 {[%emt 0:00:09]} Be5 {[%emt 0:00:10]} 26. Qg4 {[%emt 0:00:19]} g6 {[%emt 0:00:18]} 27. dxc6 {[%emt 0:00:45]} bxc6 {[%emt 0:00:13]} 28. Ne7+ {[%emt 0:00:05]} Kg7 {[%emt 0:00:19]} 29. Nxc6 {[%emt 0:00:07]} Rac8 {[%emt 0:00:15]} 30. Qd7+ {[%emt 0:01:09]} Kh6 {[%emt 0:00:25]} 31. Nxe5 {[%emt 0:01:54]} fxe5 {[%emt 0:00:06]} 32. Rxf8 {[%emt 0:00:12]} Rxf8 {[%emt 0:00:03]} 33. Qe7 {[%emt 0:00:02]} Rf4 {[%emt 0:00:26]} 34. g3 {[%emt 0:00:21]} Rf5 {[%emt 0:01:06]} 35. g4 {[%emt 0:00:04]} Rf4 {[%emt 0:00:22]} 36. Qxe5 {[%emt 0:00:54]} Qxc4 {[%emt 0:00:21]} 37. Re1 {[%emt 0:00:29]} Qc5 {[%emt 0:00:13]} 38. Qxf4+ {[%emt 0:00:04]} Qg5 {[%emt 0:00:08]} 39. Qxg5+ {[%emt 0:00:04]} Kxg5 {[%emt 0:00:13]} 40. Rb1 {[%emt 0:00:03] #r} 1-0

[Event "African Online-ch Women 2021"]
[Site "Online"]
[Date "2021.02.01"]
[Round "1.3"]
[White "Shah, Riya"]
[Black "Latreche, Sabrina"]
[Result "0-1"]
[WhiteElo "1559"]
[BlackElo "2076"]
[PlyCount "66"]
[EventDate "2021.02.01"]
[EventType "swiss"]
[EventCountry "NET"]
[TimeControl "1500+10"]
[WhiteClock "0:02:50"]
[BlackClock "0:07:07"]

1. d4 {[%emt 0:00:00]} Nf6 {[%emt 0:00:04]} 2. e3 {[%emt 0:00:04]} e6 {[%emt 0:00:04]} 3. Bd3 {[%emt 0:00:05]} c5 {[%emt 0:00:03]} 4. c3 {[%emt 0:00:03]} Nc6 {[%emt 0:00:03]} 5. f4 {[%emt 0:00:05]} a6 {[%emt 0:00:09]} 6. Nf3 {[%emt 0:00:05]} b5 {[%emt 0:00:02]} 7. b3 {[%emt 0:00:07]} Bb7 {[%emt 0:00:03]} 8. O-O {[%emt 0:00:45]} d6 {[%emt 0:00:17]} 9. Bb2 {[%emt 0:01:27]} Be7 {[%emt 0:00:56]} 10. Nbd2 {[%emt 0:00:33]} Qb6 {[%emt 0:00:27]} 11. Kh1 {[%emt 0:01:46]} Rd8 {[%emt 0:02:39]} 12. Qe2 {[%emt 0:01:59]} cxd4 {[%emt 0:01:49]} 13. cxd4 {[%emt 0:01:51]} Nb4 {[%emt 0:01:00]} 14. Bb1 {[%emt 0:03:18]} Nbd5 {[%emt 0:01:50]} 15. h3 {[%emt 0:02:24]} O-O {[%emt 0:02:10]} 16. Ne4 {[%emt 0:02:13]} Nxe4 {[%emt 0:01:56]} 17. Bxe4 {[%emt 0:00:08]} f5 {[%emt 0:00:24]} 18. Bd3 {[%emt 0:00:41]} Rc8 {[%emt 0:01:30]} 19. Rac1 {[%emt 0:00:17]} h6 {[%emt 0:01:36]} 20. h4 {[%emt 0:01:34]} Nf6 {[%emt 0:00:23]} 21. g3 {[%emt 0:03:10]} Ng4 {[%emt 0:00:52]} 22. Kg1 {[%emt 0:00:18]} Nf6 {[%emt 0:02:04]} 23. Nd2 {[%emt 0:01:37]} Ba8 {[%emt 0:00:58]} 24. Nf3 {[%emt 0:01:31]} Qb7 {[%emt 0:00:26]} 25. Kh2 {[%emt 0:00:30]} Ng4+ {[%emt 0:00:12]} 26. Kh3 {[%emt 0:00:04]} Rxc1 {[%emt 0:00:07]} 27. Rxc1 {[%emt 0:00:08]} Qxf3 {[%emt 0:00:10]} 28. Qxf3 {[%emt 0:00:04]} Bxf3 {[%emt 0:00:02]} 29. Rf1 {[%emt 0:00:36]} Bb7 {[%emt 0:00:51]} 30. Bc1 {[%emt 0:00:08]} Rb8 {[%emt 0:00:04]} 31. Be2 {[%emt 0:00:03]} h5 {[%emt 0:00:07]} 32. Bxg4 {[%emt 0:00:04]} hxg4+ {[%emt 0:00:03]} 33. Kh2 {[%emt 0:00:02]} Rc8 {[%emt 0:00:02] #R} 0-1

[Event "African Online-ch Women 2021"]
[Site "Online"]
[Date "2021.02.01"]
[Round "1.4"]
[White "Moaataz, Ayah"]
[Black "Du Plessis, Anika"]
[Result "1-0"]
[WhiteElo "2028"]
[BlackElo "1541"]
[PlyCount "77"]
[EventDate "2021.02.01"]
[EventType "swiss"]
[EventCountry "NET"]
[TimeControl "1500+10"]
[WhiteClock "0:04:24"]
[BlackClock "0:00:31"]

1. c4 {[%emt 0:00:00]} e5 {[%emt 0:00:05]} 2. g3 {[%emt 0:00:05]} Nf6 {[%emt 0:00:09]} 3. Bg2 {[%emt 0:00:02]} Be7 {[%emt 0:00:11]} 4. Nc3 {[%emt 0:00:05]} O-O {[%emt 0:00:03]} 5. Nf3 {[%emt 0:00:04]} d6 {[%emt 0:00:02]} 6. d3 {[%emt 0:00:07]} c6 {[%emt 0:00:09]} 7. O-O {[%emt 0:00:04]} Be6 {[%emt 0:00:08]} 8. Rb1 {[%emt 0:00:46]} Nbd7 {[%emt 0:00:04]} 9. e4 {[%emt 0:00:52]} d5 {[%emt 0:02:05]} 10. Ng5 {[%emt 0:01:59]} h6 {[%emt 0:01:08]} 11. Nxe6 {[%emt 0:00:04]} fxe6 {[%emt 0:00:05]} 12. exd5 {[%emt 0:00:03]} exd5 {[%emt 0:00:21]} 13. cxd5 {[%emt 0:00:02]} Qc7 {[%emt 0:01:52]} 14. dxc6 {[%emt 0:01:57]} bxc6 {[%emt 0:00:09]} 15. Be3 {[%emt 0:00:08]} Rad8 {[%emt 0:02:22]} 16. Qa4 {[%emt 0:01:26]} Nb6 {[%emt 0:01:13]} 17. Qb3+ {[%emt 0:01:57]} Kh8 {[%emt 0:00:36]} 18. Ne4 {[%emt 0:00:22]} Nbd5 {[%emt 0:01:51]} 19. Bd2 {[%emt 0:00:58]} Qb6 {[%emt 0:01:45]} 20. Qa4 {[%emt 0:04:23]} Bb4 {[%emt 0:03:19]} 21. Rbd1 {[%emt 0:03:22]} a5 {[%emt 0:02:14]} 22. a3 {[%emt 0:01:03]} Bxd2 {[%emt 0:00:06]} 23. Rxd2 {[%emt 0:00:05]} Qb5 {[%emt 0:01:59]} 24. Qc2 {[%emt 0:00:33]} Ng4 {[%emt 0:01:08]} 25. h3 {[%emt 0:01:27]} Ngf6 {[%emt 0:00:29]} 26. Rc1 {[%emt 0:00:39]} Ne7 {[%emt 0:00:53]} 27. Nc5 {[%emt 0:00:27]} Rd6 {[%emt 0:00:57]} 28. Re1 {[%emt 0:00:14]} Ng6 {[%emt 0:00:53]} 29. Ne4 {[%emt 0:00:48]} Rd4 {[%emt 0:01:01]} 30. Nxf6 {[%emt 0:01:08]} Rxf6 {[%emt 0:00:03]} 31. Be4 {[%emt 0:00:13]} Ne7 {[%emt 0:00:15]} 32. Rc1 {[%emt 0:00:07]} Rfd6 {[%emt 0:00:20]} 33. Re2 {[%emt 0:00:18]} Nd5 {[%emt 0:00:18]} 34. Qc5 {[%emt 0:00:21]} Qxc5 {[%emt 0:00:10]} 35. Rxc5 {[%emt 0:00:05]} a4 {[%emt 0:00:45]} 36. Ra5 {[%emt 0:00:10]} Nf6 {[%emt 0:00:11]} 37. Bf5 {[%emt 0:00:13]} Kg8 {[%emt 0:01:13]} 38. Raxe5 {[%emt 0:00:24]} R6d5 {[%emt 0:00:17]} 39. Be6+ {[%emt 0:00:05] #r} 1-0

[Event "African Online-ch Women 2021"]
[Site "Online"]
[Date "2021.02.01"]
[Round "1.6"]
[White "Caxita, Esperanca"]
[Black "Castro, Neusa Aridas De"]
[Result "1-0"]
[WhiteElo "1882"]
[BlackElo "1512"]
[PlyCount "53"]
[EventDate "2021.02.01"]
[EventType "swiss"]
[EventCountry "NET"]
[TimeControl "1500+10"]
[WhiteClock "0:24:05"]
[BlackClock "0:19:06"]

1. e4 {[%emt 0:00:00]} e6 {[%emt 0:00:10]} 2. d4 {[%emt 0:00:05]} d5 {[%emt 0:00:05]} 3. exd5 {[%emt 0:00:02]} exd5 {[%emt 0:00:07]} 4. Nf3 {[%emt 0:00:02]} Nf6 {[%emt 0:00:04]} 5. Bd3 {[%emt 0:00:04]} Bd6 {[%emt 0:00:03]} 6. O-O {[%emt 0:00:04]} Bg4 {[%emt 0:00:04]} 7. c3 {[%emt 0:00:07]} Nbd7 {[%emt 0:00:07]} 8. Re1+ {[%emt 0:00:11]} Be7 {[%emt 0:00:09]} 9. Bg5 {[%emt 0:00:15]} O-O {[%emt 0:00:04]} 10. Nbd2 {[%emt 0:00:05]} c6 {[%emt 0:00:06]} 11. Bf4 {[%emt 0:00:09]} Re8 {[%emt 0:00:07]} 12. Qb3 {[%emt 0:00:08]} b6 {[%emt 0:00:20]} 13. h3 {[%emt 0:00:18]} Bxf3 {[%emt 0:00:09]} 14. Nxf3 {[%emt 0:00:05]} Rc8 {[%emt 0:00:16]} 15. Qa4 {[%emt 0:00:24]} a5 {[%emt 0:00:06]} 16. Ba6 {[%emt 0:00:57]} b5 {[%emt 0:01:58]} 17. Qc2 {[%emt 0:00:06]} Ra8 {[%emt 0:00:50]} 18. Bb7 {[%emt 0:00:05]} Ra7 {[%emt 0:00:04]} 19. Bxc6 {[%emt 0:00:03]} b4 {[%emt 0:00:22]} 20. Ne5 {[%emt 0:00:36]} Nb6 {[%emt 0:00:25]} 21. Bxe8 {[%emt 0:00:28]} Nxe8 {[%emt 0:00:12]} 22. Nc6 {[%emt 0:00:05]} Qa8 {[%emt 0:02:08]} 23. Rxe7 {[%emt 0:00:28]} Ra6 {[%emt 0:00:44]} 24. Nb8 {[%emt 0:00:10]} Kf8 {[%emt 0:00:15]} 25. Qe2 {[%emt 0:00:08]} g6 {[%emt 0:01:14]} 26. Rxe8+ {[%emt 0:00:10]} Kg7 {[%emt 0:00:05]} 27. Qe5+ {[%emt 0:00:10] #r} 1-0

[Event "African Online-ch Women 2021"]
[Site "Online"]
[Date "2021.02.01"]
[Round "1.7"]
[White "Jambo, Linda"]
[Black "Latreche, Khadidja"]
[Result "0-1"]
[WhiteElo "1478"]
[BlackElo "1900"]
[PlyCount "52"]
[EventDate "2021.02.01"]
[EventType "swiss"]
[EventCountry "NET"]
[TimeControl "1500+10"]
[WhiteClock "0:05:32"]
[BlackClock "0:07:51"]

1. e4 {[%emt 0:00:00]} c5 {[%emt 0:00:06]} 2. Nf3 {[%emt 0:00:04]} e6 {[%emt 0:00:03]} 3. Be2 {[%emt 0:00:11]} Nc6 {[%emt 0:00:05]} 4. O-O {[%emt 0:00:08]} Nf6 {[%emt 0:00:23]} 5. Nc3 {[%emt 0:00:05]} d5 {[%emt 0:00:50]} 6. exd5 {[%emt 0:00:25]} exd5 {[%emt 0:00:03]} 7. Re1 {[%emt 0:00:05]} Be7 {[%emt 0:01:52]} 8. Bb5 {[%emt 0:00:08]} O-O {[%emt 0:00:18]} 9. Bxc6 {[%emt 0:00:05]} bxc6 {[%emt 0:00:05]} 10. d3 {[%emt 0:00:06]} h6 {[%emt 0:00:24]} 11. Ne5 {[%emt 0:00:17]} Bd7 {[%emt 0:02:00]} 12. Nxd7 {[%emt 0:00:14]} Qxd7 {[%emt 0:00:08]} 13. b3 {[%emt 0:00:36]} Bd6 {[%emt 0:01:26]} 14. Bb2 {[%emt 0:00:22]} Qf5 {[%emt 0:03:12]} 15. h3 {[%emt 0:02:43]} Rfe8 {[%emt 0:00:52]} 16. Rb1 {[%emt 0:03:12]} Rxe1+ {[%emt 0:03:39]} 17. Qxe1 {[%emt 0:00:06]} Re8 {[%emt 0:00:02]} 18. Qd1 {[%emt 0:01:03]} Qe5 {[%emt 0:00:48]} 19. g3 {[%emt 0:02:13]} d4 {[%emt 0:00:15]} 20. Na4 {[%emt 0:02:57]} Nh5 {[%emt 0:00:42]} 21. Qf3 {[%emt 0:01:01]} Re6 {[%emt 0:01:01]} 22. Qxc6 {[%emt 0:04:21]} Nxg3 {[%emt 0:00:46]} 23. fxg3 {[%emt 0:00:21]} Qxg3+ {[%emt 0:00:05]} 24. Qg2 {[%emt 0:00:04]} Qe3+ {[%emt 0:00:53]} 25. Kh1 {[%emt 0:01:06]} Rg6 {[%emt 0:00:32]} 26. Qf1 {[%emt 0:01:55]} Qg3 {[%emt 0:00:59] #R} 0-1

[Event "African Online-ch Women 2021"]
[Site "Online"]
[Date "2021.02.01"]
[Round "1.8"]
[White "Botlhole, Kgalalelo"]
[Black "Farnela, Nuzela Zacarias Musi"]
[Result "1/2-1/2"]
[WhiteElo "1705"]
[BlackElo "1431"]
[PlyCount "120"]
[EventDate "2021.02.01"]
[EventType "swiss"]
[EventCountry "NET"]
[TimeControl "1500+10"]
[WhiteClock "0:21:01"]
[BlackClock "0:08:23"]

{White stopped clock for 125 seconds.} 1. d4 {[%emt 0:00:00]} d5 {[%emt 0:00:24]} 2. c4 {[%emt 0:00:03]} c6 {[%emt 0:00:32]} 3. Nf3 {[%emt 0:00:10]} Bf5 {[%emt 0:00:10]} 4. Nc3 {[%emt 0:00:03]} e6 {[%emt 0:00:10]} 5. cxd5 {[%emt 0:00:07]} cxd5 {[%emt 0:00:13]} 6. Qb3 {[%emt 0:00:04]} b6 {[%emt 0:00:24]} 7. Bg5 {[%emt 0:00:04]} Be7 {[%emt 0:00:16]} 8. Bxe7 {[%emt 0:00:05]} Qxe7 {[%emt 0:00:19]} 9. e3 {[%emt 0:00:01]} Nf6 {[%emt 0:00:11]} 10. Bb5+ {[%emt 0:00:02]} Nbd7 {[%emt 0:00:12]} 11. Ne5 {[%emt 0:00:09]} O-O {[%emt 0:00:21]} 12. O-O {[%emt 0:00:06]} Nxe5 {[%emt 0:00:16]} 13. dxe5 {[%emt 0:00:03]} Ne4 {[%emt 0:00:07]} 14. Nxe4 {[%emt 0:00:07]} Bxe4 {[%emt 0:00:10]} 15. Rac1 {[%emt 0:00:03]} f6 {[%emt 0:00:37]} 16. exf6 {[%emt 0:00:05]} Qxf6 {[%emt 0:00:24]} 17. f3 {[%emt 0:00:13]} Bg6 {[%emt 0:00:19]} 18. Rc7 {[%emt 0:00:07]} Rf7 {[%emt 0:00:42]} 19. Rfc1 {[%emt 0:00:04]} Qe5 {[%emt 0:01:08]} 20. Rxf7 {[%emt 0:00:13]} Bxf7 {[%emt 0:00:16]} 21. Qc3 {[%emt 0:00:03]} Qxc3 {[%emt 0:00:52]} 22. Rxc3 {[%emt 0:00:04]} a6 {[%emt 0:00:10]} 23. Bd3 {[%emt 0:00:04]} b5 {[%emt 0:00:11]} 24. a3 {[%emt 0:00:03]} Rb8 {[%emt 0:00:12]} 25. Rc7 {[%emt 0:00:29]} Kf8 {[%emt 0:00:23]} 26. Kf2 {[%emt 0:00:15]} h6 {[%emt 0:00:48]} 27. Ra7 {[%emt 0:00:07]} Rb6 {[%emt 0:00:17]} 28. Ra8+ {[%emt 0:00:04]} Ke7 {[%emt 0:00:09]} 29. Ra7+ {[%emt 0:00:03]} Kf8 {[%emt 0:00:08]} 30. g3 {[%emt 0:00:11]} g5 {[%emt 0:01:11]} 31. f4 {[%emt 0:05:44]} gxf4 {[%emt 0:02:25]} 32. gxf4 {[%emt 0:00:04]} Kg7 {[%emt 0:00:13]} 33. Ke2 {[%emt 0:00:44]} Kf6 {[%emt 0:00:11]} 34. Kd2 {[%emt 0:00:03]} Rc6 {[%emt 0:01:45]} 35. b4 {[%emt 0:00:14]} Bg6 {[%emt 0:00:58]} 36. Bxg6 {[%emt 0:00:30]} Kxg6 {[%emt 0:00:07]} 37. Kd3 {[%emt 0:00:03]} Kf6 {[%emt 0:00:55]} 38. Ra8 {[%emt 0:00:11]} Kg6 {[%emt 0:01:13]} 39. Kd4 {[%emt 0:00:07]} Kf6 {[%emt 0:00:07]} 40. Rf8+ {[%emt 0:00:04]} Kg7 {[%emt 0:00:06]} 41. Ra8 {[%emt 0:00:06]} Kf6 {[%emt 0:00:05]} 42. h3 {[%emt 0:00:14]} Rc4+ {[%emt 0:00:26]} 43. Kd3 {[%emt 0:00:04]} Rc6 {[%emt 0:00:08]} 44. Ra7 {[%emt 0:00:07]} Kf5 {[%emt 0:00:47]} 45. Rh7 {[%emt 0:00:12]} Kg6 {[%emt 0:00:07]} 46. Re7 {[%emt 0:00:13]} Kf6 {[%emt 0:00:35]} 47. Ra7 {[%emt 0:00:08]} Kf5 {[%emt 0:00:15]} 48. Ra8 {[%emt 0:00:04]} Kf6 {[%emt 0:00:22]} 49. e4 {[%emt 0:00:11]} dxe4+ {[%emt 0:00:13]} 50. Kxe4 {[%emt 0:00:02]} Rc4+ {[%emt 0:00:11]} 51. Kd3 {[%emt 0:00:06]} Rc6 {[%emt 0:02:13]} 52. Rh8 {[%emt 0:00:19]} Kg7 {[%emt 0:00:08]} 53. Ra8 {[%emt 0:00:05]} Kf6 {[%emt 0:00:11]} 54. Ra7 {[%emt 0:00:06]} Kf5 {[%emt 0:00:13]} 55. Rf7+ {[%emt 0:00:03]} Kg6 {[%emt 0:00:08]} 56. Ra7 {[%emt 0:00:06]} Kf5 {[%emt 0:00:08]} 57. Rf7+ {[%emt 0:00:07]} Kg6 {[%emt 0:00:06]} 58. Re7 {[%emt 0:00:22] Black offered a draw.} Kf6 {[%emt 0:00:21]} 59. Rh7 {[%emt 0:00:11] Black offered a draw.} Kg6 {[%emt 0:00:20]} 60. Ra7 {[%emt 0:00:17]} Kf5 {[%emt 0:00:08] #D} 1/2-1/2

[Event "African Online-ch Women 2021"]
[Site "Online"]
[Date "2021.02.01"]
[Round "1.9"]
[White "Glenda, Madelta"]
[Black "Vilhete, Vania Fausto Da T."]
[Result "1-0"]
[ECO "A47"]
[WhiteElo "1427"]
[BlackElo "1756"]
[Annotator "NA"]
[PlyCount "53"]
[EventDate "2021.02.01"]
[EventType "swiss"]
[EventCountry "NET"]
[SourceTitle "playchess.com"]
[Source "ChessBase"]
[SourceQuality "1"]
[TimeControl "1500+10"]

1. d4 {[%emt 0:00:00]} Nf6 {[%emt 0:00:09]} 2. Nc3 {[%emt 0:00:04]} e6 {[%emt 0:00:03]} 3. Bf4 {[%emt 0:00:04]} b6 {[%emt 0:00:05]} 4. e3 {[%emt 0:00:03]} Bb7 {[%emt 0:00:03]} 5. Nf3 {[%emt 0:00:06]} Bb4 {[%emt 0:00:14]} 6. Bd3 {[%emt 0:00:06]} h6 {[%emt 0:00:09]} 7. h3 {[%emt 0:00:06]} Bxc3+ {[%emt 0:00:12]} 8. bxc3 {[%emt 0:00:03]} Nd5 {[%emt 0:00:13]} 9. Qd2 {[%emt 0:02:55]} Nxf4 {[%emt 0:00:17]} 10. exf4 {[%emt 0:00:03]} d6 {[%emt 0:00:28]} 11. Qe3 {[%emt 0:00:12]} O-O {[%emt 0:00:13]} 12. O-O {[%emt 0:00:05]} Nd7 {[%emt 0:00:08]} 13. Rfe1 {[%emt 0:00:18]} Nf6 {[%emt 0:00:08]} 14. f5 {[%emt 0:00:16]} Re8 {[%emt 0:00:39]} 15. fxe6 {[%emt 0:00:11]} Rxe6 {[%emt 0:00:05]} 16. Qd2 {[%emt 0:00:14]} Qd7 {[%emt 0:00:31]} 17. Rxe6 {[%emt 0:00:09]} Qxe6 {[%emt 0:00:34]} 18. Re1 {[%emt 0:00:04]} Qd7 {[%emt 0:00:24]} 19. Re3 {[%emt 0:00:10]} Re8 {[%emt 0:02:57]} 20. c4 {[%emt 0:00:15]} a6 {[%emt 0:04:31]} 21. Qe2 {[%emt 0:01:51]} Rxe3 {[%emt 0:00:09]} 22. Qxe3 {[%emt 0:00:10]} b5 {[%emt 0:00:19]} 23. cxb5 {[%emt 0:00:21]} axb5 {[%emt 0:00:04]} 24. Nd2 {[%emt 0:00:28]} Qc6 {[%emt 0:00:18]} 25. f3 {[%emt 0:00:15]} Qc3 {[%emt 0:01:43]} 26. Bh7+ {[%emt 0:00:20]} Nxh7 {[%emt 0:00:16]} 27. Qxc3 {[%emt 0:00:06]} 1-0

[Event "African Online-ch Women 2021"]
[Site "Online"]
[Date "2021.02.01"]
[Round "1.10"]
[White "Francis, Onkemetse"]
[Black "Ibtihal Mohammed"]
[Result "0-1"]
[WhiteElo "1798"]
[BlackElo "1491"]
[PlyCount "134"]
[EventDate "2021.02.01"]
[EventType "swiss"]
[EventCountry "NET"]
[TimeControl "1500+10"]
[WhiteClock "0:00:13"]
[BlackClock "0:18:54"]

1. e4 {[%emt 0:00:00]} c5 {[%emt 0:00:03]} 2. Nc3 {[%emt 0:00:08]} Nc6 {[%emt 0:00:03]} 3. g3 {[%emt 0:00:07]} Nf6 {[%emt 0:00:06]} 4. Bg2 {[%emt 0:00:05]} e5 {[%emt 0:00:05]} 5. d3 {[%emt 0:00:04]} Be7 {[%emt 0:00:05]} 6. Nge2 {[%emt 0:00:17]} d6 {[%emt 0:00:05]} 7. O-O {[%emt 0:00:05]} Bg4 {[%emt 0:00:04]} 8. h3 {[%emt 0:00:09]} Be6 {[%emt 0:00:04]} 9. f4 {[%emt 0:00:11]} Qb6 {[%emt 0:00:20]} 10. Kh2 {[%emt 0:00:06]} O-O {[%emt 0:00:13]} 11. Na4 {[%emt 0:01:27]} Qd8 {[%emt 0:00:13]} 12. Nac3 {[%emt 0:00:04]} a6 {[%emt 0:00:03]} 13. Be3 {[%emt 0:00:30]} b5 {[%emt 0:00:06]} 14. Qd2 {[%emt 0:00:43]} b4 {[%emt 0:00:12]} 15. Nd1 {[%emt 0:00:03]} h6 {[%emt 0:00:16]} 16. Nf2 {[%emt 0:00:16]} Nd4 {[%emt 0:00:22]} 17. f5 {[%emt 0:00:43]} Bd7 {[%emt 0:00:16]} 18. g4 {[%emt 0:00:05]} Qc8 {[%emt 0:00:26]} 19. Ng3 {[%emt 0:00:06]} Nh7 {[%emt 0:00:10]} 20. Nfh1 {[%emt 0:00:42]} Bg5 {[%emt 0:00:05]} 21. Bxg5 {[%emt 0:00:13]} Nxg5 {[%emt 0:00:03]} 22. f6 {[%emt 0:00:31]} g6 {[%emt 0:00:05]} 23. c3 {[%emt 0:00:41]} Nde6 {[%emt 0:00:36]} 24. h4 {[%emt 0:00:13]} Nh7 {[%emt 0:00:14]} 25. Qxh6 {[%emt 0:04:18]} Kh8 {[%emt 0:00:21]} 26. Ne2 {[%emt 0:00:41]} Rg8 {[%emt 0:00:30]} 27. Qe3 {[%emt 0:00:50]} Qd8 {[%emt 0:00:07]} 28. Qf3 {[%emt 0:01:21]} g5 {[%emt 0:01:02]} 29. h5 {[%emt 0:00:17]} Nf4 {[%emt 0:00:10]} 30. Nhg3 {[%emt 0:00:19]} Qxf6 {[%emt 0:00:12]} 31. Bh1 {[%emt 0:00:27]} Qe6 {[%emt 0:00:23]} 32. Nf5 {[%emt 0:00:06]} Nf6 {[%emt 0:00:31]} 33. Neg3 {[%emt 0:00:52]} Kh7 {[%emt 0:00:39]} 34. a3 {[%emt 0:00:50]} bxc3 {[%emt 0:00:07]} 35. bxc3 {[%emt 0:00:04]} Rab8 {[%emt 0:00:06]} 36. Rab1 {[%emt 0:00:08]} Bc6 {[%emt 0:01:36]} 37. c4 {[%emt 0:02:08]} a5 {[%emt 0:00:29]} 38. Ne2 {[%emt 0:00:07]} Ba4 {[%emt 0:00:35]} 39. Nxf4 {[%emt 0:02:56]} exf4 {[%emt 0:00:10]} 40. Qe2 {[%emt 0:00:19]} Qe5 {[%emt 0:00:18]} 41. Bf3 {[%emt 0:00:13]} Rb3 {[%emt 0:00:14]} 42. Rxb3 {[%emt 0:00:50]} Bxb3 {[%emt 0:00:03]} 43. Rb1 {[%emt 0:00:17]} a4 {[%emt 0:00:03]} 44. Qb2 {[%emt 0:00:27]} Qe6 {[%emt 0:01:21]} 45. Qc3 {[%emt 0:01:18]} Nd7 {[%emt 0:00:10]} 46. Kg2 {[%emt 0:00:52]} Ne5 {[%emt 0:00:04]} 47. Re1 {[%emt 0:00:51]} Rb8 {[%emt 0:00:12]} 48. Re2 {[%emt 0:00:47]} Bd1 {[%emt 0:00:07]} 49. Rf2 {[%emt 0:00:51]} Bxf3+ {[%emt 0:00:05]} 50. Rxf3 {[%emt 0:00:03]} Rb3 {[%emt 0:00:20]} 51. Qa1 {[%emt 0:00:19]} f6 {[%emt 0:00:04]} 52. Rh3 {[%emt 0:00:37]} Nxg4 {[%emt 0:00:26]} 53. h6 {[%emt 0:01:16]} Qe5 {[%emt 0:01:15]} 54. Qxe5 {[%emt 0:00:53]} dxe5 {[%emt 0:00:10]} 55. Kf3 {[%emt 0:01:06]} Ne3 {[%emt 0:00:15]} 56. Nxe3 {[%emt 0:00:04]} fxe3 {[%emt 0:00:03]} 57. Kxe3 {[%emt 0:00:03]} Rxa3 {[%emt 0:00:02]} 58. Rh2 {[%emt 0:00:03]} Rb3 {[%emt 0:00:10]} 59. Ra2 {[%emt 0:00:11]} Rb4 {[%emt 0:00:06]} 60. Ra3 {[%emt 0:00:10]} Kxh6 {[%emt 0:00:05]} 61. Kf3 {[%emt 0:00:02]} Kh5 {[%emt 0:00:02]} 62. Kg3 {[%emt 0:00:02]} g4 {[%emt 0:00:05]} 63. Ra2 {[%emt 0:00:16]} Kg5 {[%emt 0:00:07]} 64. Rf2 {[%emt 0:00:16]} a3 {[%emt 0:00:06]} 65. Rf5+ {[%emt 0:00:03]} Kg6 {[%emt 0:00:04]} 66. Kxg4 {[%emt 0:00:11]} a2 {[%emt 0:00:03]} 67. Rf1 {[%emt 0:00:44]} Rb1 {[%emt 0:00:03] #R} 0-1